bitfinex-derivatives/quotes_SOLF0:USTF0_20250630
["timestamp","ask_amount","ask_price","bid_price","bid_amount"]
[1751322718957,2.91487967,155.54,155.51,6.4288]
[1751322719364,9.34257967,155.54,155.46,2.91487967]
[1751322719560,2.91487967,155.54,155.46,2.91487967]
[1751322719959,9.34257967,155.54,155.51,6.4288]
[1751322720367,2.91487967,155.54,155.51,6.4288]
[1751322721266,9.34247967,155.54,155.51,6.4288]
[1751322722758,5.18110126,155.53,155.52,6.4284]
[1751322722963,8.09598093,155.54,155.52,6.4284]
[1751322724556,14.52358093,155.54,155.51,6.4286]
[1751322724757,9.34247967,155.54,155.51,6.4286]
[1751322724966,9.34247967,155.54,155.49,44.26]
[1751322725865,9.34247967,155.54,155.5,6.429]
[1751322726067,6.428,155.53,155.5,6.429]
[1751322726262,2.91487967,155.52,155.49,50.6896]
[1751322726468,2.91487967,155.52,155.49,44.26]
[1751322726871,2.91487967,155.52,155.49,50.6895]
[1751322727066,2.91487967,155.52,155.49,44.26]
[1751322728666,9.34327967,155.52,155.5,6.4292]
[1751322731273,9.34327967,155.52,155.49,50.6895]
[1751322732168,9.34327967,155.52,155.34,19.33]
[1751322732169,5.8265134,155.5,155.28,12.00701734]
[1751322732370,2.9132567,155.38,155.3,6.3978]
[1751322732576,2.9132567,155.38,155.3,56.2910567]
[1751322732778,2.9132567,155.38,155.33,6.4361]
[1751322732976,2.9132567,155.38,155.3,53.3778]
[1751322733178,6.4348,155.37,155.32,6.4364]
[1751322733479,2.9132567,155.36,155.32,6.4364]
[1751322733774,2.9132567,155.34,155.3,46.98]
[1751322733966,2.9132567,155.32,155.26,46.98]
[1751322735082,2.9132567,155.32,155.28,6.4381]
[1751322735778,2.9132567,155.32,155.29,6.4377]
[1751322736873,9.3500567,155.32,155.26,46.98]
[1751322737073,46.98,155.38,155.27,2.9132567]
[1751322737280,46.98,155.38,155.26,46.98]
[1751322737281,2.91728859,155.36,155.28,2.91728859]
[1751322737580,9.35258859,155.36,155.28,2.91728859]
[1751322737775,2.91728859,155.34,155.28,2.91728859]
[1751322738773,2.91728859,155.35,155.28,2.91728859]
[1751322739173,2.91728859,155.35,155.33,6.436]
[1751322741381,2.91728859,155.35,155.34,6.4358]
[1751322743180,2.91728859,155.35,155.33,6.4361]
[1751322748384,2.91728859,155.35,155.34,6.4358]
[1751322748681,9.3518137,155.37,155.34,6.4358]
[1751322749087,9.3518137,155.37,155.33,6.436]
[1751322751384,9.3518137,155.37,155.34,6.4358]
[1751322753090,9.3518137,155.37,155.28,2.9171137]
[1751322753294,2.9171137,155.37,155.28,2.9171137]
[1751322753887,9.3517137,155.37,155.28,2.9171137]
[1751322754193,9.35159857,155.37,155.29,2.91699857]
[1751322755190,2.91717369,155.36,155.28,2.91717369]
[1751322757190,49.1917,155.41,155.3,2.91717369]
[1751322757392,2.91717369,155.39,155.31,51.3315]
[1751322757893,2.91717369,155.39,155.32,5.19787369]
[1751322758497,2.1717,155.41,155.32,5.19787369]
[1751322758695,2.91717369,155.4,155.32,5.19787369]
[1751322759396,2.91717369,155.4,155.37,6.4344]
[1751322760495,9.35077369,155.4,155.37,6.4344]
[1751322761095,2.91717369,155.38,155.37,6.4344]
[1751322762791,2.91717369,155.38,155.36,6.4348]
[1751322762993,2.91717369,155.38,155.32,2.2807]
[1751322763194,2.91717369,155.36,155.32,2.2807]
[1751322763489,2.91717369,155.36,155.35,6.4354]
[1751322763690,2.91694091,155.37,155.35,6.4354]
[1751322763890,6.48238354,155.43,155.32,5.19665843]
[1751322764088,2.91595843,155.4,155.32,5.19665843]
[1751322764289,6.4332,155.41,155.32,5.19665843]
[1751322764498,6.4332,155.41,155.37,6.4343]
[1751322764900,6.4332,155.41,155.32,5.19665843]
[1751322765099,6.4332,155.41,155.38,6.4341]
[1751322765801,6.4335,155.4,155.38,6.4341]
[1751322766001,9.34945843,155.4,155.38,6.4341]
[1751322767602,2.91595843,155.4,155.38,6.4341]
[1751322771298,2.91595843,155.4,155.32,2.2807]
[1751322771998,9.35005843,155.39,155.32,2.2807]
[1751322772402,9.35005843,155.39,155.36,6.4347]
[1751322774904,6.4342,155.38,155.36,6.4347]
[1751322775506,2.91595843,155.37,155.32,2.2807]
[1751322776206,9.35085843,155.37,155.34,6.4356]
[1751322776406,9.35085843,155.37,155.32,2.2807]
[1751322778011,2.91595843,155.37,155.35,6.4354]
[1751322778209,4.33791295,155.37,155.32,5.19749987]
[1751322778509,7.25471282,155.38,155.32,5.19749987]
[1751322778711,2.91679987,155.38,155.32,5.19749987]
[1751322778904,7.25471282,155.38,155.36,6.4348]
[1751322779406,4.33791295,155.38,155.36,6.4348]
[1751322780508,4.33791295,155.39,155.32,2.2807]
[1751322780707,7.25471282,155.41,155.33,2.91679987]
[1751322780910,10.77151295,155.4,155.37,6.4343]
[1751322781207,4.3757178,155.39,155.37,6.4343]
[1751322781408,4.37637535,155.39,155.37,6.4343]
[1751322782306,4.37637535,155.38,155.37,6.4343]
[1751322783210,4.37637535,155.39,155.37,6.4343]
[1751322783401,4.37637535,155.38,155.37,6.4343]
[1751322783709,4.37637535,155.39,155.37,6.4343]
[1751322783912,4.37637535,155.38,155.37,6.4343]
[1751322784109,4.37637535,155.39,155.37,6.4343]
[1751322784310,4.37637535,155.38,155.37,6.4343]
[1751322784511,4.37637535,155.39,155.37,6.4343]
[1751322785509,4.37637535,155.39,155.35,6.4351]
[1751322785708,2.91679987,155.37,155.35,6.4351]
[1751322786514,9.35139987,155.37,155.35,6.4351]
[1751322787311,13.72777522,155.37,155.35,6.4351]
[1751322787512,9.35139987,155.37,155.35,6.4351]
[1751322787812,9.35139987,155.37,155.34,6.4357]
[1751322787813,6.435,155.36,155.34,6.4357]
[1751322788006,10.81137535,155.36,155.34,6.4357]
[1751322788603,4.37637535,155.36,155.34,6.4357]
[1751322788806,4.37637535,155.36,155.35,6.4354]
[1751322790802,6.57222391,155.36,155.31,47.02]
[1751322791003,6.57222391,155.35,155.31,47.02]
[1751322791203,4.37637535,155.34,155.31,47.02]
[1751322791412,4.37637535,155.35,155.31,47.02]
[1751322791613,6.57222391,155.36,155.31,47.02]
[1751322791814,4.37637535,155.35,155.31,47.02]
[1751322792018,6.57222391,155.36,155.33,6.436]
[1751322793314,4.37637535,155.36,155.33,6.436]
[1751322793514,6.4354,155.35,155.33,6.436]
[1751322794717,10.81177535,155.35,155.33,6.436]
[1751322794918,4.37637535,155.35,155.33,6.436]
[1751322796217,13.00742391,155.36,155.33,6.436]
[1751322797324,10.81157535,155.36,155.33,6.436]
[1751322797624,13.00742391,155.36,155.33,6.436]
[1751322799218,10.81157535,155.36,155.33,6.436]
[1751322799714,6.4355,155.35,155.33,6.436]
[1751322801630,9.35229987,155.35,155.33,6.436]
[1751322801824,9.35229987,155.35,155.32,6.4364]
[1751322802024,9.35229987,155.35,155.31,47.02]
[1751322803022,9.35229987,155.35,155.33,6.436]
[1751322803225,2.91679987,155.35,155.31,47.02]
[1751322803534,6.57222391,155.39,155.33,2.91679987]
[1751322803724,4.37637535,155.4,155.35,2.91679987]
[1751322803928,4.37637535,155.41,155.36,46.08]
[1751322804236,10.80907535,155.42,155.36,46.08]
[1751322804632,10.80907535,155.42,155.38,6.4338]
[1751322805729,6.433,155.41,155.38,6.4338]
[1751322806223,6.433,155.41,155.36,46.08]
[1751322806224,6.433,155.41,155.39,6.4337]
[1751322807029,6.57222391,155.43,155.42,6.4325]
[1751322807232,4.37637535,155.44,155.42,6.4325]
[1751322807734,6.57222391,155.45,155.42,6.4325]
[1751322808033,10.80757535,155.46,155.43,6.432]
[1751322808234,6.4312,155.46,155.43,6.432]
[1751322808429,6.4313,155.45,155.43,6.432]
[1751322808634,6.4313,155.45,155.42,6.4323]
[1751322809036,6.4313,155.45,155.39,2.91679987]
[1751322809235,6.4313,155.45,155.43,6.4319]
[1751322809436,10.80737535,155.46,155.43,6.4319]
[1751322810135,6.431,155.46,155.43,6.4319]
[1751322812235,13.72387522,155.47,155.44,6.4316]
[1751322812437,7.29317522,155.47,155.44,6.4316]
[1751322813239,2.91679987,155.47,155.44,6.4316]
[1751322813630,6.431,155.46,155.44,6.4316]
[1751322813939,6.431,155.46,155.43,6.4319]
[1751322814141,6.4309,155.46,155.43,6.4319]
[1751322815142,9.34769987,155.46,155.43,6.4319]
[1751322816435,6.4313,155.45,155.43,6.4319]
[1751322816631,6.4313,155.45,155.39,2.91679987]
[1751322817049,6.4313,155.45,155.42,6.4322]
[1751322818247,6.4313,155.45,155.43,6.432]
[1751322819546,6.4313,155.45,155.42,6.4323]
[1751322819747,6.4317,155.44,155.42,6.4323]
[1751322819948,6.4317,155.44,155.39,2.91679987]
[1751322820145,6.4317,155.44,155.41,6.4326]
[1751322820347,6.4317,155.44,155.39,2.91679987]
[1751322820647,6.4317,155.44,155.41,6.4327]
[1751322821548,6.4322,155.43,155.41,6.4327]
[1751322822143,6.4319,155.44,155.41,6.4327]
[1751322823449,6.4315,155.45,155.39,2.91679987]
[1751322825349,6.4315,155.45,155.42,6.4322]
[1751322826249,6.4315,155.45,155.43,6.432]
[1751322826457,9.34789987,155.46,155.43,6.432]
[1751322830247,6.4306,155.47,155.39,2.91679987]
[1751322830444,6.4306,155.47,155.41,2.91679987]
[1751322830654,6.4306,155.47,155.41,48.39679987]
[1751322831050,6.4306,155.47,155.44,6.4315]
[1751322831250,6.4306,155.47,155.41,48.39679987]
[1751322831450,9.34699987,155.48,155.41,48.39679987]
[1751322831852,2.91679987,155.48,155.41,48.39679987]
[1751322832456,6.4305,155.47,155.44,6.4314]
[1751322832955,6.4305,155.47,155.45,6.4312]
[1751322833549,9.34699987,155.48,155.45,6.4312]
[1751322833855,2.91679987,155.48,155.45,6.4312]
[1751322834657,6.4305,155.47,155.45,6.4312]
[1751322837359,6.4305,155.47,155.44,6.4315]
[1751322839362,6.431,155.46,155.44,6.4315]
[1751322841764,8.29551114,155.46,155.44,6.4315]
[1751322842168,1.86451114,155.45,155.43,6.4319]
[1751322842767,8.29591114,155.45,155.43,6.4319]
[1751322844065,1.86451114,155.44,155.43,6.4319]
[1751322845667,8.29621114,155.44,155.42,6.4323]
[1751322845869,1.86451114,155.43,155.41,45.48]
[1751322846059,1.86451114,155.42,155.38,3.98481114]
[1751322846864,1.86451114,155.42,155.4,6.433]
[1751322847665,12.67176158,155.43,155.4,6.433]
[1751322847971,4.37475044,155.44,155.38,2.1203]
[1751322848168,4.37475044,155.43,155.38,2.1203]
[1751322848371,6.570599,155.42,155.41,6.4329]
[1751322848669,4.37475044,155.42,155.41,6.4329]
[1751322849168,6.570599,155.42,155.41,6.4329]
[1751322849367,4.37475044,155.42,155.41,6.4329]
[1751322849669,6.570599,155.42,155.41,6.4329]
[1751322849867,4.37475044,155.42,155.41,6.4329]
[1751322850068,4.37475044,155.42,155.38,2.1203]
[1751322850069,6.570599,155.42,155.38,2.1203]
[1751322850371,4.37475044,155.41,155.38,2.1203]
[1751322850569,13.003399,155.42,155.39,6.4337]
[1751322850769,4.37475044,155.41,155.39,6.4337]
[1751322851370,8.62864856,155.42,155.39,6.4337]
[1751322852671,8.62864856,155.42,155.37,45.46]
[1751322853075,4.49782771,155.41,155.37,45.46]
[1751322853373,8.62864856,155.42,155.39,6.4336]
[1751322853575,10.9311207,155.41,155.37,45.46]
[1751322853777,6.4332,155.41,155.38,6.4339]
[1751322853964,6.4332,155.41,155.37,45.46]
[1751322854673,6.4332,155.41,155.38,6.4341]
[1751322855371,6.4332,155.41,155.39,6.4337]
[1751322855872,4.49734745,155.4,155.39,6.4337]
[1751322863378,4.49734745,155.41,155.39,6.4337]
[1751322863676,4.49734745,155.4,155.39,6.4337]
[1751322863875,4.49734745,155.41,155.39,6.4337]
[1751322864076,4.49734745,155.4,155.39,6.4337]
[1751322864275,4.49734745,155.41,155.39,6.4337]
[1751322864478,4.49734745,155.4,155.39,6.4337]
[1751322864671,4.49734745,155.41,155.39,6.4337]
[1751322864868,4.49734745,155.4,155.39,6.4337]
[1751322865177,10.93034745,155.41,155.39,6.4337]
[1751322865379,4.49734745,155.4,155.39,6.4337]
[1751322866375,4.49734745,155.41,155.39,6.4337]
[1751322866577,4.49734745,155.4,155.39,6.4337]
[1751322866778,4.49734745,155.41,155.39,6.4337]
[1751322866977,4.49734745,155.4,155.39,6.4337]
[1751322867177,4.49734745,155.41,155.39,6.4337]
[1751322867378,4.49734745,155.4,155.39,6.4337]
[1751322867578,4.49734745,155.41,155.39,6.4337]
[1751322867879,4.49734745,155.4,155.39,6.4337]
[1751322869276,4.49734745,155.41,155.4,6.4333]
[1751322872884,6.73802925,155.41,155.4,6.4333]
[1751322873082,4.49734745,155.41,155.4,8.29836273]
[1751322873278,2.2406818,155.45,155.4,1.86506273]
[1751322873479,2.2406818,155.47,155.43,1.86506273]
[1751322873679,2.2406818,155.46,155.44,6.4314]
[1751322875280,2.2406818,155.46,155.45,6.4313]
[1751322875986,2.2406818,155.47,155.45,6.4313]
[1751322876480,2.2406818,155.48,155.45,1.86506273]
[1751322876686,2.2406818,155.49,155.45,1.86506273]
[1751322876886,2.2406818,155.48,155.46,1.86506273]
[1751322877083,8.6703818,155.49,155.46,6.4305]
[1751322877484,10.53544453,155.49,155.46,6.4305]
[1751322878588,8.29476273,155.49,155.46,6.4305]
[1751322878786,10.53544453,155.49,155.46,6.4305]
[1751322878987,6.4297,155.49,155.46,6.4305]
[1751322879188,1.86384984,155.48,155.46,6.4305]
[1751322881390,8.29394984,155.48,155.46,6.4305]
[1751322882486,1.86384984,155.47,155.46,6.4305]
[1751322884691,6.43,155.49,155.46,6.4305]
[1751322884886,1.86384984,155.48,155.46,6.4305]
[1751322885388,8.29394984,155.48,155.46,6.4305]
[1751322885887,6.51071412,155.5,155.43,1.86384984]
[1751322885888,1.86384984,155.47,155.43,1.86384984]
[1751322886089,8.29464984,155.47,155.43,1.86384984]
[1751322886881,8.29464984,155.47,155.42,45.02]
[1751322887086,8.29464984,155.47,155.43,1.86384984]
[1751322887288,8.29464984,155.47,155.44,6.4314]
[1751322888790,8.29464984,155.47,155.45,6.4312]
[1751322888988,6.4308,155.47,155.45,6.4312]
[1751322893098,8.29464984,155.47,155.45,6.4312]
[1751322898102,6.4308,155.47,155.45,6.4312]
[1751322900203,6.73013935,155.51,155.46,6.4306]
[1751322900405,1.86384984,155.5,155.46,6.4306]
[1751322901098,6.43,155.49,155.46,6.4306]
[1751322903306,8.29384984,155.49,155.46,6.4306]
[1751322904203,1.86384984,155.49,155.47,6.4304]
[1751322904404,1.86384984,155.51,155.47,1.86384984]
[1751322904606,18.52680773,155.53,155.48,1.86384984]
[1751322904804,1.86384984,155.53,155.49,6.4294]
[1751322905000,3.96944984,155.54,155.5,1.86384984]
[1751322905206,1.86384984,155.54,155.5,8.29274984]
[1751322905505,8.29154984,155.54,155.5,1.86384984]
[1751322905802,1.86384984,155.54,155.51,6.4286]
[1751322906003,12.3677063,155.56,155.51,6.4286]
[1751322906396,6.4279,155.54,155.51,6.4286]
[1751322906598,8.29174984,155.54,155.51,6.4286]
[1751322909305,6.428,155.53,155.51,6.4286]
[1751322910309,8.29184984,155.53,155.51,6.4286]
[1751322911311,8.29184984,155.53,155.5,8.29284984]
[1751322911511,8.29154984,155.54,155.5,1.86384984]
[1751322911712,1.86384984,155.54,155.5,1.86384984]
[1751322912212,1.86384984,155.53,155.47,44.84]
[1751322912412,1.86384984,155.53,155.49,1.86384984]
[1751322913514,6.4286,155.52,155.5,6.4292]
[1751322915215,6.4286,155.52,155.5,8.29304984]
[1751322916204,6.428,155.53,155.51,6.4287]
[1751322916409,1.86384984,155.54,155.51,6.4287]
[1751322916611,1.86384984,155.55,155.51,8.29254984]
[1751322916907,6.4279,155.54,155.51,8.29254984]
[1751322920308,1.86384984,155.55,155.52,6.4282]
[1751322921616,6.4276,155.54,155.52,6.4282]
[1751322922622,8.29144984,155.54,155.52,6.4282]
[1751322923320,6.4276,155.54,155.52,6.4282]
[1751322923523,8.29144984,155.54,155.52,6.4282]
[1751322924627,6.4283,155.53,155.5,1.86384984]
[1751322924920,1.86384984,155.52,155.48,1.86384984]
[1751322925318,8.29234984,155.52,155.5,6.429]
[1751322925619,6.4285,155.52,155.49,1.86384984]
[1751322925816,6.4285,155.52,155.49,8.29324984]
[1751322927126,6.4288,155.51,155.49,8.29324984]
[1751322927523,5.87571196,155.56,155.5,1.86384984]
[1751322927821,5.87571196,155.56,155.53,1.86384984]
[1751322928026,5.87571196,155.56,155.51,6.4284]
[1751322928325,5.87571196,155.56,155.52,1.86384984]
[1751322928625,6.4273,155.55,155.52,8.29194984]
[1751322931227,6.4268,155.56,155.53,1.86384984]
[1751322931628,10.21250601,155.58,155.54,8.29114984]
[1751322931823,6.4262,155.58,155.54,8.29114984]
[1751322932227,6.4262,155.58,155.55,6.4271]
[1751322932827,6.4263,155.57,155.55,6.4271]
[1751322933026,6.4263,155.57,155.54,8.29124984]
[1751322933228,6.4263,155.57,155.54,1.86384984]
[1751322933930,6.4263,155.57,155.54,6.4275]
[1751322934631,8.28994984,155.58,155.55,6.4271]
[1751322935129,1.86384984,155.58,155.55,6.4271]
[1751322936328,6.20064389,155.58,155.55,6.4271]
[1751322936629,6.4264,155.57,155.55,6.4271]
[1751322936831,5.19739588,155.56,155.54,6.4275]
[1751322937033,5.19739588,155.56,155.54,8.29134984]
[1751322937225,5.19739588,155.56,155.55,6.4271]
[1751322938931,5.19739588,155.57,155.54,1.86384984]
[1751322939232,6.4265,155.57,155.54,1.86384984]
[1751322939433,11.62389588,155.57,155.54,8.29114984]
[1751322940233,6.427,155.56,155.54,1.86384984]
[1751322940436,7.06124572,155.56,155.52,46.66384984]
[1751322940636,11.62469588,155.55,155.52,51.2281]
[1751322941428,11.62469588,155.55,155.53,6.4279]
[1751322941632,6.4273,155.55,155.53,6.4279]
[1751322942231,11.62826093,155.55,155.53,6.4279]
[1751322943133,5.20096093,155.55,155.53,6.4279]
[1751322943435,6.20064389,155.58,155.52,44.8]
[1751322943635,7.06272781,155.57,155.53,1.86384984]
[1751322943835,11.62577797,155.56,155.53,1.86384984]
[1751322944030,11.62577797,155.56,155.54,6.4275]
[1751322944939,11.62577797,155.56,155.53,8.29164984]
[1751322946537,11.62577797,155.56,155.54,6.4275]
[1751322947231,5.19887797,155.55,155.54,6.4275]
[1751322948644,5.19887797,155.55,155.53,8.29164984]
[1751322948842,5.19887797,155.54,155.53,8.29164984]
[1751322949036,5.19887797,155.55,155.53,8.29164984]
[1751322949233,5.19887797,155.54,155.53,8.29164984]
[1751322949542,5.19887797,155.55,155.54,6.4276]
[1751322950138,5.19887797,155.55,155.54,8.29144984]
[1751322952044,4.33679405,155.57,155.56,6.4267]
[1751322952244,5.21857096,155.57,155.56,1.86384984]
[1751322952542,5.21857096,155.58,155.57,6.4263]
[1751322952738,5.21857096,155.59,155.57,46.58384984]
[1751322952937,4.33679405,155.61,155.58,1.86384984]
[1751322953137,5.21755418,155.6,155.59,1.86384984]
[1751322954540,5.21755418,155.6,155.59,8.28894984]
[1751322954838,5.21755418,155.6,155.57,44.72]
[1751322955043,5.21755418,155.59,155.57,46.58384984]
[1751322955240,5.21755418,155.58,155.57,46.58384984]
[1751322955442,5.21755418,155.59,155.57,53.00984984]
[1751322955644,5.21755418,155.58,155.57,53.00984984]
[1751322955846,11.64345418,155.58,155.57,44.72]
[1751322956048,15.98024823,155.58,155.57,44.72]
[1751322961149,9.55434823,155.58,155.57,44.72]
[1751322961650,9.55434823,155.58,155.57,51.1463]
[1751322963746,11.78048758,155.58,155.57,51.1463]
[1751322964948,9.55434823,155.58,155.57,51.1463]
[1751322967462,9.55434823,155.58,155.57,44.72]
[1751322967962,18.88857782,155.58,155.55,6.427]
[1751322968170,9.55434823,155.57,155.55,6.427]
[1751322968369,5.21755418,155.56,155.55,6.427]
[1751322969163,9.55434823,155.56,155.55,6.427]
[1751322969868,9.55434823,155.56,155.53,44.72]
[1751322970068,9.55434823,155.55,155.53,44.72]
[1751322970269,5.21755418,155.54,155.53,51.148]
[1751322970564,5.21755418,155.54,155.53,44.72]
[1751322971361,11.64515418,155.54,155.53,44.72]
[1751322973267,11.64515418,155.54,155.49,600.06]
[1751322973569,5.21755418,155.53,155.49,600.06]
[1751322973764,5.21755418,155.52,155.49,600.06]
[1751322973961,6.4276,155.54,155.49,600.06]
[1751322973962,5.21755418,155.51,155.49,600.06]
[1751322974161,6.4276,155.54,155.51,6.4284]
[1751322974361,5.22181088,155.53,155.51,6.4284]
[1751322974563,5.22181088,155.52,155.51,6.4284]
[1751322978277,6.4276,155.54,155.51,6.4284]
[1751322978679,4.35426571,155.53,155.51,6.4284]
[1751322978978,6.4276,155.54,155.51,6.4284]
[1751322979278,13.0367127,155.54,155.51,6.4284]
[1751322979481,6.4276,155.54,155.51,6.4284]
[1751322979678,13.0367127,155.54,155.51,6.4284]
[1751322979979,6.4276,155.54,155.51,6.4284]
[1751322980175,13.0367127,155.54,155.51,6.4284]
[1751322980477,6.4276,155.54,155.51,6.4284]
[1751322980678,10.78186571,155.54,155.52,6.4284]
[1751322982471,6.428,155.53,155.51,6.4285]
[1751322984277,13.0368127,155.54,155.52,6.4282]
[1751322984484,6.4277,155.54,155.52,6.4282]
[1751322984684,6.6091127,155.55,155.49,600.06]
[1751322984884,6.6091127,155.55,155.49,602.96832959]
[1751322985576,6.6091127,155.55,155.53,6.4277]
[1751322985778,13.0363127,155.55,155.53,6.4277]
[1751322986685,6.6091127,155.55,155.49,47.62832959]
[1751322986885,7.2625953,155.54,155.49,44.72]
[1751322987682,6.4282,155.53,155.51,6.4286]
[1751322991386,6.4284,155.52,155.51,6.4286]
[1751322991690,2.90832959,155.54,155.51,6.4286]
[1751322991989,6.4282,155.53,155.51,6.4286]
[1751322992988,6.4277,155.54,155.52,6.4284]
[1751322993989,6.428,155.53,155.51,6.4286]
[1751322998896,6.4278,155.54,155.52,6.4284]
[1751322999088,10.78206571,155.54,155.52,6.4284]
[1751322999293,13.0369127,155.54,155.52,6.4284]
[1751322999800,14.89973361,155.54,155.52,6.4284]
[1751323000394,14.89973361,155.54,155.5,6.429]
[1751323000996,4.35426571,155.53,155.5,6.429]
[1751323001393,10.78256571,155.53,155.5,6.429]
[1751323001696,1.86282091,155.52,155.49,51.1494]
[1751323002493,6.429,155.51,155.49,51.1494]
[1751323002701,1.86282091,155.52,155.49,44.72]
[1751323003296,6.21708662,155.52,155.49,44.72]
[1751323003497,6.4288,155.51,155.49,51.1494]
[1751323004598,12.64568662,155.52,155.5,6.4292]
[1751323004798,10.78286571,155.52,155.5,6.4292]
[1751323006298,6.4288,155.51,155.49,51.1494]
[1751323011106,10.78306571,155.51,155.49,51.1494]
[1751323011304,13.0379127,155.51,155.49,51.1494]
[1751323012505,7.73853287,155.5,155.45,600.06]
[1751323012701,16.83897843,155.49,155.45,600.06]
[1751323012907,6.6091127,155.48,155.45,601.92282091]
[1751323013108,6.6091127,155.47,155.45,601.92282091]
[1751323013304,8.47312007,155.48,155.45,600.06]
[1751323013504,1.86400737,155.46,155.41,46.6753]
[1751323013711,8.47312007,155.45,155.41,48.53930737]
[1751323013904,1.86400737,155.45,155.41,48.53930737]
[1751323014608,6.4314,155.45,155.41,48.53930737]
[1751323015315,6.4314,155.45,155.42,6.4324]
[1751323015717,8.29510737,155.46,155.41,48.53930737]
[1751323015922,13.0402127,155.46,155.41,46.6753]
[1751323016212,6.4311,155.46,155.41,46.6753]
[1751323016418,13.0398127,155.47,155.41,46.6753]
[1751323016716,6.6091127,155.47,155.42,2.91347706]
[1751323016919,6.6091127,155.48,155.42,2.91347706]
[1751323017112,8.68494699,155.48,155.42,2.91347706]
[1751323017617,8.68494699,155.48,155.45,6.431]
[1751323018321,6.4301,155.48,155.45,6.431]
[1751323018523,6.4305,155.47,155.45,6.431]
[1751323022423,13.87674353,155.5,155.44,2.91347706]
[1751323022925,6.43,155.49,155.46,6.4306]
[1751323023427,6.43,155.49,155.44,2.91347706]
[1751323024426,6.43,155.49,155.46,6.4305]
[1751323024730,10.96326647,155.5,155.41,46.6753]
[1751323024923,2.91347706,155.49,155.42,2.91347706]
[1751323026426,6.4307,155.47,155.45,6.4311]
[1751323026631,2.91347706,155.49,155.42,2.91347706]
[1751323027734,6.4302,155.48,155.46,6.4306]
[1751323028035,2.91347706,155.49,155.42,2.91347706]
[1751323028239,2.25484699,155.5,155.42,2.91347706]
[1751323028436,2.25484699,155.5,155.44,2.91347706]
[1751323028936,15.39830172,155.51,155.44,2.91347706]
[1751323029138,8.78918902,155.51,155.44,2.91347706]
[1751323029336,15.39830172,155.51,155.44,2.91347706]
[1751323029636,6.4298,155.49,155.47,6.4305]
[1751323030137,6.4294,155.5,155.44,2.91347706]
[1751323031538,6.4294,155.5,155.48,6.4299]
[1751323032139,6.4296,155.49,155.47,6.4303]
[1751323032747,6.43,155.48,155.46,6.4307]
[1751323033635,6.4306,155.47,155.41,49.58877706]
[1751323034542,6.4306,155.47,155.45,6.4311]
[1751323035742,6.4301,155.48,155.46,6.4309]
[1751323049857,8.29416386,155.48,155.46,6.4309]
[1751323050250,10.53743343,155.48,155.46,6.4309]
[1751323050958,10.53742808,155.48,155.46,6.4309]
[1751323052258,2.24326957,155.47,155.46,6.4309]
[1751323055161,6.59753528,155.47,155.46,6.4309]
[1751323059856,6.59753528,155.47,155.45,6.4311]
[1751323060063,6.59753528,155.46,155.45,6.4311]
[1751323061762,6.59753528,155.46,155.44,1.86391191]
[1751323061963,2.24326957,155.45,155.44,1.86391191]
[1751323063568,2.24326957,155.45,155.44,8.29561191]
[1751323068161,6.514174,155.45,155.44,8.29561191]
[1751323068360,2.24326957,155.45,155.44,8.29561191]
[1751323068561,6.514174,155.45,155.44,8.29561191]
[1751323068762,2.24326957,155.45,155.44,8.29561191]
[1751323068965,6.514174,155.45,155.44,8.29561191]
[1751323069165,2.24326957,155.45,155.44,8.29561191]
[1751323069362,6.514174,155.45,155.44,8.29561191]
[1751323069562,2.24326957,155.45,155.44,8.29561191]
[1751323069762,6.514174,155.45,155.44,8.29561191]
[1751323070061,2.24326957,155.45,155.44,8.29561191]
[1751323070263,6.514174,155.45,155.44,8.29561191]
[1751323070562,2.24326957,155.45,155.44,8.29561191]
[1751323070763,6.514174,155.45,155.44,8.29561191]
[1751323070962,2.24326957,155.45,155.44,8.29561191]
[1751323071162,6.514174,155.45,155.44,8.29561191]
[1751323071365,2.24326957,155.45,155.44,8.29561191]
[1751323071666,6.514174,155.45,155.44,8.29561191]
[1751323071869,2.24326957,155.45,155.44,8.29561191]
[1751323072167,6.514174,155.45,155.44,8.29561191]
[1751323077269,6.514174,155.45,155.44,6.4317]